[Event "GER-ch Youth-U16 2022"]
[Site "Willingen"]
[Date "2022.06.08"]
[Round "5.14"]
[White "Beyer, Lorenz"]
[Black "Guo, Philipp Ziming"]
[Result "1/2-1/2"]
[ECO "D02"]
[WhiteElo "1512"]
[BlackElo "1825"]
[Annotator "NA RC COMBH"]
[PlyCount "89"]
[EventDate "2022.06.05"]
[EventType "swiss"]
[EventRounds "9"]
[EventCountry "GER"]
[SourceTitle "playchess.com"]
[Source "ChessBase"]
[SourceQuality "1"]
[TimeControl "40/4500+30:900+30"]

1. d4 {[%emt 0:00:00]} Nf6 {[%emt 0:00:00]} 2. Nf3 {[%emt 0:00:00]} d5 {[%emt 0:00:00]} 3. Bf4 {[%emt 0:00:00]} c5 {[%emt 0:00:00]} 4. e3 {[%emt 0:00:00]} Nc6 {[%emt 0:00:00]} 5. c3 {[%emt 0:00:00]} Qb6 {[%emt 0:00:00]} 6. b3 {[%emt 0:00:00]} g6 {[%emt 0:00:00]} 7. Bd3 {[%emt 0:00:00]} Bg7 {[%emt 0:00:00]} 8. O-O {[%emt 0:00:00]} O-O {[%emt 0:00:00]} 9. Nbd2 {[%emt 0:00:00]} Nh5 {[%emt 0:00:00]} 10. Bg5 {[%emt 0:00:00]} e5 {[%emt 0:06:42]} 11. dxe5 {[%emt 0:00:23]} Nxe5 {[%emt 0:00:17]} 12. Nxe5 {[%emt 0:02:28]} Bxe5 {[%emt 0:00:10]} 13. Rc1 {[%emt 0:01:40]} f5 {[%emt 0:11:26]} 14. Be2 {[%emt 0:05:57]} Ng7 {[%emt 0:01:17]} (14... Bf6 $16 {was worth a try.} 15. h4 Bxg5 16. hxg5 Ng7) 15. Nf3 {[%emt 0:08:42]} Qd6 {[%emt 0:03:32]} 16. Nxe5 {[%emt 0:03:07]} Qxe5 {[%emt 0:00:05]} 17. Bf3 {[%emt 0:00:33]} Be6 {[%emt 0:06:16]} 18. Bf4 {[%emt 0:03:20]} Qf6 {[%emt 0:00:07]} 19. Bxd5 {[%emt 0:21:13]} g5 {[%emt 0:20:06]} 20. Bxe6+ {[%emt 0:03:49]} Nxe6 {[%emt 0:00:24]} 21. Bg3 {[%emt 0:06:06]} f4 {[%emt 0:00:31]} 22. exf4 {[%emt 0:00:04]} gxf4 {[%emt 0:00:17]} 23. Qg4+ {[%emt 0:00:01]} Qg6 {[%emt 0:00:11]} 24. Qxg6+ {[%emt 0:01:45]} hxg6 {[%emt 0:00:06]} 25. Bh4 {[%emt 0:01:10]} g5 {[%emt 0:00:12]} 26. Rfe1 {[%emt 0:00:33]} Rae8 {[%emt 0:02:35]} 27. Rxe6 {[%emt 0:00:23]} Rxe6 {[%emt 0:00:14]} 28. Bxg5 {[%emt 0:00:02]} Re2 {[%emt 0:01:26]} 29. a3 {[%emt 0:00:06]} Rf5 {[%emt 0:07:23]} 30. h4 {[%emt 0:00:41]} Ra2 {[%emt 0:01:26]} 31. a4 {[%emt 0:05:44]} Rb2 {[%emt 0:01:29]} 32. b4 {[%emt 0:01:26]} cxb4 {[%emt 0:02:21]} 33. cxb4 {[%emt 0:00:11]} Rxb4 {[%emt 0:00:22]} 34. Rc8+ {[%emt 0:00:10]} (34. Rc7 $17) 34... Kg7 {[%emt 0:01:29]} 35. Rc7+ {[%emt 0:01:32]} Rf7 {[%emt 0:01:20]} 36. Rc8 {[%emt 0:02:24]} Rxa4 {[%emt 0:00:54]} 37. Kh2 {[%emt 0:01:42]} b5 {[%emt 0:00:49]} 38. g4 {[%emt 0:00:16]} Ra2 {[%emt 0:02:34]} 39. Kg2 {[%emt 0:00:26]} b4 {[%emt 0:00:35]} 40. Rb8 {[%emt 0:01:20]} a5 {[%emt 0:00:32]} 41. Bd8 {[%emt 0:15:05]} Ra3 $2 {[%emt 0:25:16]} ({Better is} 41... f3+ $19 42. Kg3 Ra1) 42. h5 {[%emt 0:00:41]} b3 {[%emt 0:02:05]} 43. g5 {[%emt 0:01:04]} f3+ {[%emt 0:00:00]} 44. Kg3 {[%emt 0:00:00]} Ra1 $11 {[%emt 0:00:00]} 45. Bf6+ 1/2-1/2

[Event "GER-ch Youth-U16 2022"]
[Site "Willingen"]
[Date "2022.06.08"]
[Round "5.15"]
[White "Weidenhoefer, Max"]
[Black "Neuber, Pascal"]
[Result "0-1"]
[ECO "B12"]
[WhiteElo "1945"]
[BlackElo "1802"]
[Annotator "TA"]
[PlyCount "100"]
[EventDate "2022.06.05"]
[EventType "swiss"]
[EventRounds "9"]
[EventCountry "GER"]
[SourceTitle "playchess.com"]
[Source "ChessBase"]
[SourceQuality "1"]
[TimeControl "40/4500+30:900+30"]

{[%evp 9,100,5,10,0,13,12,74,85,147,139,126,56,60,20,27,23,25,16,12,15,9,-19,5,4,22,-10,-7,-71,-46,-50,-50,-55,-45,-48,-27,-26,-20,-37,-23,-55,-20,-54,-48,-91,-97,-131,-117,-487,-122,-122,-120,-126,-112,-122,-122,-191,-184,-185,-177,-223,-196,-210,-204,-298,-297,-308,-266,-252,-145,-242,-212,-251,-199,-182,-171,-168,-166,-314,-128,-337,-314,-328,-341,-310,-270,-253,-233,-29992,-29993,-29993,-29994,-29997,-29998]} 1. e4 {[%emt 0:00:00]} c6 {[%emt 0:00:00]} 2. d4 {[%emt 0:00:00]} d5 {[%emt 0:00:00]} 3. e5 {[%emt 0:00:00]} Bf5 {[%emt 0:00:00]} 4. c4 {[%emt 0:00:00]} e6 {[%emt 0:01:33]} 5. Nc3 {[%emt 0:00:00]} Nd7 {[%emt 0:03:38]} 6. h3 {[#] B12: Caro-Kann: Advance Variation.} dxc4 $146 {[%emt 0:03:09]} ({Predecessor:} 6... Ne7 7. Nf3 a6 8. a3 dxc4 9. Bxc4 Nd5 10. Bg5 Be7 11. Bxe7 Qxe7 12. O-O O-O 13. Ne2 b5 {0-1 (42) Thavandiran,S (2420)-Tanaka,T (2113) Kingston 2022}) 7. Bxc4 {[%emt 0:00:00]} c5 {[%emt 0:00:06]} (7... Nb6 $11 8. Bb3 Ne7) 8. Nf3 $16 {[%emt 0:01:39] White is better.} cxd4 {[%emt 0:03:13]} (8... a6 $142) 9. Nxd4 {[%emt 0:24:54]} (9. Qxd4 $6 Bc5 10. Qd1 Ne7 $11) 9... Bg6 {[%emt 0:04:40]} 10. Bf4 {[%emt 0:04:38]} (10. Be3 $1 $16) 10... Bc5 $1 $14 {[%emt 0:01:51]} 11. Nb3 {[%emt 0:05:07]} (11. Ndb5 {looks sharper.} a6 12. Nd6+ Bxd6 13. Qxd6 Ne7 14. Rd1) 11... Bb4 {[%emt 0:04:39]} 12. O-O {[%emt 0:01:46]} Bxc3 {[%emt 0:01:43]} (12... Rc8 {is interesting.} 13. Bb5 Ne7 14. Be3 Nc6) 13. bxc3 {[%emt 0:00:02]} Ne7 {[%emt 0:00:56]} 14. Nd4 {[%emt 0:05:51][%cal Oc4e6]} O-O {[%emt 0:07:32]} 15. Qf3 {[%emt 0:11:42][%cal Od4e6]} Nb6 {[%emt 0:02:57]} 16. Bb3 {[%emt 0:01:03]} Ned5 {[%emt 0:09:11]} 17. Bg3 {[%emt 0:01:00]} Rc8 {[%emt 0:05:01] Prevents c4.} 18. Ne2 {[%emt 0:02:48]} (18. Rac1 $11 {keeps the balance.}) 18... Nc4 {[%emt 0:02:26] White must now prevent ...Nd2. Black is more active.} 19. Rfd1 {[%emt 0:01:01] Inhibits Nd2.} Qa5 {[%emt 0:01:30]} 20. Rac1 {[%emt 0:02:39]} Rc5 {[%emt 0:03:28]} 21. Qg4 {[%emt 0:05:55]} Ndb6 {[%emt 0:04:36][%cal Bd5b6,Bb6c8,Bc8e7,Be7f5][%mdl 32]} 22. Qh4 {[%emt 0:03:56]} Nxe5 {[%emt 0:04:10]} 23. Rd8 {[%emt 0:01:04] Rxf8+ would kill now.} Rc8 {[%emt 0:03:21]} 24. Rcd1 {[%emt 0:03:10] Hoping for Bxe5.} Nc6 {[%emt 0:00:25]} 25. Rxc8 {[%emt 0:00:28]} Nxc8 {[%emt 0:01:45]} 26. Kf1 {[%emt 0:02:23]} N8e7 {[%emt 0:00:38]} 27. Qg4 {[%emt 0:01:14]} Nf5 {[%emt 0:01:03][%cal Og6h5]} 28. Bf4 $2 {[%emt 0:00:35][%mdl 8192] [#]} (28. Bh2 $17 {is a better chance.}) 28... Rd8 $2 {[%emt 0:02:34]} (28... Bh5 $1 $19 {[%cal Rh5g4][%mdl 512] has better winning chances.} 29. Bc7 (29. Qxh5 $2 Ne3+ 30. Bxe3 Qxh5 $19) (29. Qg5 h6) 29... Bxg4 30. Bxa5 Bxe2+ 31. Kxe2 Nxa5) 29. Rxd8+ $17 {[%emt 0:00:25]} Qxd8 {[%emt 0:00:01]} 30. Qf3 {[%emt 0:00:13]} Na5 {[%emt 0:03:01]} 31. Nc1 {[%emt 0:02:57]} b6 {[%emt 0:05:49]} 32. g3 {[%emt 0:00:16]} (32. Qd1 $17 Qc8 33. g4) 32... h6 $19 {[%emt 0:00:27][%cal Bh7h6,Bh6h5][%mdl 32]} 33. h4 {[%emt 0:00:36]} h5 {[%emt 0:02:42]} 34. Bg5 {[%emt 0:00:07]} (34. Ba4 {was worth a try.}) 34... Qc8 {[%emt 0:00:54]} 35. Kg2 {[%emt 0:01:46]} Nd6 {[%emt 0:00:31] Strongly threatening ...Be4. Pair of Knights!} 36. Kh2 {[%emt 0:01:01]} (36. Qd1 $142 Ne4 37. Qd8+ Qxd8 38. Bxd8) 36... Ne4 {[%emt 0:00:17]} 37. Ne2 {[%emt 0:00:25]} Nxg5 {[%emt 0:00:58]} 38. hxg5 {[%emt 0:00:02]} Qc6 {[%emt 0:00:32]} (38... Nxb3 $19 39. axb3 Qc5) 39. Qe3 {[%emt 0:00:52]} (39. Qxc6 $17 Nxc6 40. Nf4) 39... Qe4 {[%emt 0:02:31]} 40. Qd2 {[%emt 0:00:42]} Nc6 41. Nf4 {[%emt 0:00:00]} Ne5 {[%emt 0:00:00] ( -> ...Nf3+)} 42. Bd1 {[%emt 0:00:00]} Kh7 {[%emt 0:00:18]} 43. Be2 {[%emt 0:00:00] [#]} (43. Qe2 $142) 43... Bf5 {[%emt 0:02:21]} (43... Qf3 $3 $19 {[%mdl 512] is more deadly.} 44. Qe3 Ng4+ 45. Kg1 Qxe3 46. fxe3 Nxe3) 44. Ng2 $2 {[%emt 0:06:31]} (44. Bxh5 $17 Qf3 45. Qb2 Ng4+ 46. Bxg4 Qxg4 47. g6+ Bxg6 48. Nxg6 Kxg6 49. Kg2) 44... Bg4 {[%emt 0:06:03]} 45. Bxg4 {[%emt 0:03:43]} hxg4 {[%emt 0:00:01] KQN-KQN} ({Don't blunder} 45... Nxg4+ $2 46. Kg1 $19) 46. Nh4 {[%emt 0:01:33]} Nf3+ {[%emt 0:00:50]} 47. Nxf3 {[%emt 0:00:02]} gxf3 {[%emt 0:00:02]} ({Wrong is} 47... Qxf3 $2 48. Kg1 $19) 48. Kg1 $2 {[%emt 0:05:56]} (48. Qf4 $19 Qf5 49. Qd2) 48... Qb1+ {[%emt 0:00:27] Black mates.} 49. Kh2 {[%emt 0:00:25]} Qf1 {[%emt 0:00:21][%csl Gf3][%cal Rf1g2]} 50. g6+ {[%emt 0:00:21]} fxg6 {[%emt 0:00:11] Weighted Error Value: White=0.61/Black=0.37} 0-1

[Event "GER-ch Youth-U16 2022"]
[Site "Willingen"]
[Date "2022.06.08"]
[Round "5.16"]
[White "Hecht, Jonas Christian"]
[Black "Ehrig, Leon Chris"]
[Result "1/2-1/2"]
[ECO "B33"]
[WhiteElo "1884"]
[BlackElo "1890"]
[Annotator "NA RC COMBH"]
[PlyCount "41"]
[EventDate "2022.06.05"]
[EventType "swiss"]
[EventRounds "9"]
[EventCountry "GER"]
[SourceTitle "playchess.com"]
[Source "ChessBase"]
[SourceQuality "1"]
[TimeControl "40/4500+30:900+30"]

1. e4 {[%emt 0:00:00]} c5 {[%emt 0:00:00]} 2. Nf3 {[%emt 0:00:00]} e6 {[%emt 0:00:00]} 3. d4 {[%emt 0:00:00]} cxd4 {[%emt 0:00:00]} 4. Nxd4 {[%emt 0:00:00]} Nf6 {[%emt 0:00:00]} 5. Nc3 {[%emt 0:00:00]} Nc6 {[%emt 0:00:00]} 6. Ndb5 {[%emt 0:00:00]} d6 {[%emt 0:00:00]} 7. Bf4 {[%emt 0:00:00]} e5 {[%emt 0:00:00]} 8. Bg5 {[%emt 0:00:00]} a6 {[%emt 0:00:00]} 9. Na3 {[%emt 0:00:00]} Be6 {[%emt 0:00:00]} 10. Nc4 {[%emt 0:00:00]} Rb8 {[%emt 0:00:00] now scores much better than the old 10...Rc8.} 11. Nd5 {[%emt 0:02:16]} Bxd5 {[%emt 0:00:00]} 12. exd5 {[%emt 0:00:29]} Ne7 {[%emt 0:00:00]} 13. Bxf6 {[%emt 0:06:07]} gxf6 {[%emt 0:00:00]} 14. g3 {[%emt 0:05:03] [#]} Rc8 $146 {[%emt 0:06:38]} ({Predecessor:} 14... h5 15. Bh3 Bh6 16. Qf3 Nc8 17. O-O b5 18. Na5 Qxa5 19. Qxf6 Rg8 20. Qxh6 Qb4 {1-0 (59) Zelcic,R (2526)-Dreev,A (2671) Zagreb 2019}) 15. Ne3 {[%emt 0:13:13]} Bh6 {[%emt 0:17:20]} 16. Ng4 {[%emt 0:08:02]} Qa5+ {[%emt 0:07:19]} 17. c3 {[%emt 0:00:53]} Bg7 {[%emt 0:00:57]} 18. Ne3 {[%emt 0:04:25]} Bh6 {[%emt 0:19:50]} 19. Ng4 {[%emt 0:15:59]} Bg7 {[%emt 0:03:42]} 20. Ne3 {[%emt 0:00:09]} Bh6 {[%emt 0:13:49] [#]} 21. Ng4 $11 {[%emt 0:10:01]} (21. Bh3 $1 $16 {[%cal Rh3c8]}) 1/2-1/2

[Event "GER-ch Youth-U16 2022"]
[Site "Willingen"]
[Date "2022.06.08"]
[Round "6.1"]
[White "Bakiev, Diyor"]
[Black "Petrovskyi, Vadym"]
[Result "1/2-1/2"]
[ECO "B52"]
[WhiteElo "2157"]
[BlackElo "2330"]
[Annotator "TA"]
[PlyCount "62"]
[EventDate "2022.06.05"]
[EventType "swiss"]
[EventRounds "9"]
[EventCountry "GER"]
[SourceTitle "playchess.com"]
[Source "ChessBase"]
[SourceQuality "1"]
[TimeControl "40/4500+30:900+30"]

{[%evp 9,62,0,23,35,27,26,24,18,31,12,14,7,7,9,11,3,36,23,25,18,26,20,19,12,31,24,21,0,4,3,30,24,23,20,27,28,31,31,45,34,40,16,33,14,37,42,76,70,108,108,100,93,85,0,0]} 1. e4 {[%emt 0:00:00]} c5 {[%emt 0:00:00]} 2. Nf3 {[%emt 0:00:00]} d6 {[%emt 0:00:00]} 3. Bb5+ {[%emt 0:00:00]} Bd7 {[%emt 0:00:00]} 4. c4 {[%emt 0:00:00]} Nf6 {[%emt 0:00:00]} 5. Nc3 {[%emt 0:00:00]} e5 {[%emt 0:00:00]} 6. Bxd7+ {[%emt 0:00:00] B52: Sicilian: Moscow Variation with 3...Bd7.} Qxd7 {[%emt 0:00:00]} 7. d3 {[%emt 0:00:00]} Be7 {[%emt 0:00:00][%cal Bf8e7,Be7f6,Bf6d8,Bd8b6,Bb6a5][%mdl 32]} 8. Bg5 {[%emt 0:00:00] White has an edge.} Nc6 {[%emt 0:00:00]} 9. Bxf6 {[%emt 0:00:00]} Bxf6 {[%emt 0:00:00]} 10. Nd5 {[%emt 0:00:00]} Bd8 {[%emt 0:00:00]} 11. O-O {[%emt 0:00:00]} O-O {[%emt 0:00:00]} 12. a3 {[%emt 0:00:52] [#]} Kh8 $146 {[%emt 0:01:16]} ({Predecessor:} 12... f5 13. b4 Bb6 14. exf5 Ne7 15. bxc5 Bxc5 16. d4 exd4 17. Nxe7+ Qxe7 18. Nxd4 Bxd4 19. Qxd4 Rxf5 {½-½ (30) Knudsen,S (2203)-Vanduyfhuys,D (2044) Wachtebeke 2022}) 13. b4 {[%emt 0:03:09]} Bb6 {[%emt 0:00:46]} 14. b5 {[%emt 0:04:51]} Ne7 {[%emt 0:02:17]} 15. Nxe7 {[%emt 0:11:06]} Qxe7 {[%emt 0:00:11]} 16. Qd2 {[%emt 0:08:48]} Qc7 {[%emt 0:05:32]} 17. Nh4 {[%emt 0:05:31]} Ba5 {[%emt 0:01:34]} 18. Qg5 {[%emt 0:02:01]} Bc3 {[%emt 0:07:08]} 19. Rab1 {[%emt 0:05:24]} ({But not} 19. Nf5 f6 20. Qg4 Bxa1 21. Rxa1 Qd7 $17) 19... Bd4 {[%emt 0:03:57]} 20. Nf5 {[%emt 0:02:52][%csl Gf5][%cal Rg5g7]} f6 {[%emt 0:00:16]} 21. Qd2 {[%emt 0:00:46]} g6 {[%emt 0:01:39]} 22. Nxd4 {[%emt 0:00:31]} cxd4 {[%emt 0:00:16]} 23. f4 {[%emt 0:09:29]} f5 {[%emt 0:05:37]} 24. Rbe1 {[%emt 0:03:09]} Rae8 {[%emt 0:01:53]} 25. h4 {[%cal Oh4h5]} Qg7 26. h5 {[%emt 0:14:04]} fxe4 {[%emt 0:23:02]} 27. Rxe4 {[%emt 0:02:17]} gxh5 {[%emt 0:00:09] [#]} 28. Qe2 $1 {[%emt 0:02:34]} Qg6 {[%emt 0:03:21]} 29. fxe5 {[%emt 0:03:25]} Rxf1+ {[%emt 0:00:32]} 30. Qxf1 {[%emt 0:01:34] And now exd6 would win.} dxe5 {[%emt 0:00:04] [#]} 31. Rxe5 {[%emt 0:00:32]} Rxe5 {[%emt 0:00:03] Weighted Error Value: White=0.09 (flawless) /Black=0.11 (very precise)} 1/2-1/2

[Event "GER-ch Youth-U16 2022"]
[Site "Willingen"]
[Date "2022.06.08"]
[Round "6.2"]
[White "Laux, Dominik"]
[Black "Farokhi, Keyvan"]
[Result "1-0"]
[ECO "C50"]
[WhiteElo "2263"]
[BlackElo "2360"]
[Annotator "TA"]
[PlyCount "55"]
[EventDate "2022.06.05"]
[EventType "swiss"]
[EventRounds "9"]
[EventCountry "GER"]
[SourceTitle "playchess.com"]
[Source "ChessBase"]
[SourceQuality "1"]
[TimeControl "40/4500+30:900+30"]

{[%evp 10,55,16,23,26,20,18,9,9,24,18,29,35,33,34,24,28,-125,-119,-124,0,1,-4,0,52,47,88,43,57,62,66,-6,-7,0,79,107,214,192,471,468,505,505,525,544,501,491,532,454]} 1. e4 {[%emt 0:00:00] Vogel,Roven} e5 {[%emt 0:00:00]} 2. Nf3 {[%emt 0:00:00]} Nc6 {[%emt 0:00:00]} 3. Bc4 {[%emt 0:00:00]} Nf6 {[%emt 0:00:00]} 4. d3 {[%emt 0:00:00]} Bc5 {[%emt 0:00:00]} 5. c3 {[%emt 0:00:00]} d6 {[%emt 0:00:00]} 6. O-O {[%emt 0:00:00]} a5 {[%emt 0:00:00] C54: Giuoco Piano: 4 c3 Nf6, main lines with 5 d4 and 5 d3.} 7. Nbd2 {[%emt 0:00:00]} O-O {[%emt 0:00:00]} 8. h3 {[%emt 0:00:00]} h6 {[%emt 0:00:00] The position is equal. 8...h6 is better than 8...Be6.} 9. Re1 {[%emt 0:00:00]} a4 {[%emt 0:00:00]} 10. Bb5 {[%emt 0:05:22]} a3 {[%emt 0:03:03]} 11. b4 {[%emt 0:02:55]} Ba7 {[%emt 0:00:10] [#]} 12. Nf1 $146 {[%emt 0:08:47]} ({Predecessor:} 12. Qb3 Ne7 13. d4 c6 14. Bf1 Be6 15. Bc4 d5 16. exd5 cxd5 17. Bf1 e4 18. Ne5 {0-1 (46) Kacharava,N (2437)-Vogel,R (2456) Chess.com INT 2020 CBM 198 [Vogel,Roven]}) 12... Nh5 {[%emt 0:08:28]} 13. Nxe5 $2 {[%emt 0:12:32]} Qh4 $17 {[%emt 0:04:08]} 14. Nf3 {[%emt 0:04:00]} Bxf2+ {[%emt 0:05:12]} (14... Qxf2+ $17 15. Kh2 Ne5) 15. Kh2 $1 $11 {[%emt 0:03:52]} Qf6 {[%emt 0:00:55] Threatens to win with ...Ne5.} 16. Re2 $36 {[%emt 0:01:38][%cal Be1e2,Be2f2,Bf2f3][%mdl 2080] White has some pressure.} Bb6 {[%emt 0:05:52]} (16... Qxc3 $2 17. Bd2 Qb2 18. Rxf2 $18) (16... Bd4 $11 17. cxd4 Nxd4 18. Nxd4 Qxd4 19. Bxh6 gxh6) 17. d4 $14 {[%emt 0:02:51]} Re8 {[%emt 0:11:45]} 18. Qe1 {[%emt 0:06:22]} Bd7 {[%emt 0:05:39][%cal Rc6d4]} 19. Bc4 {[%emt 0:04:26]} Bxd4 {[%emt 0:08:44]} 20. cxd4 {[%emt 0:03:57]} ({White should try} 20. Nxd4 $14 Nxd4 21. e5 Rxe5 22. cxd4 Rxe2 23. Qxe2 Qxd4 24. Rb1) 20... Nxd4 $11 {[%emt 0:00:32]} 21. Rf2 {[%emt 0:00:45] Nxd4 is the strong threat.} Nxf3+ {[%emt 0:04:53]} (21... d5 $1 $11 22. Bxd5 Qd6+ 23. Kh1 Nxf3 24. Bxf7+ (24. Qd1 $2 {leads to mate.} Qh2+ 25. Nxh2 Ng3#) 24... Kxf7 25. Rxf3+ Kg8) 22. Rxf3 $16 {[%emt 0:00:14] Really sharp!} Qe5+ {[%emt 0:00:34] [#]} (22... Qxa1 $16 23. Bxf7+ Kh8) 23. Ng3 $1 $18 {[%emt 0:04:35]} Nxg3 $2 {[%emt 0:06:16]} (23... Be6) 24. Bxf7+ {[%emt 0:01:17] White is clearly winning.} Kh8 {[%emt 0:02:30] Hoping for ...Ne2+.} 25. Bf4 {[%emt 0:00:18]} Qxe4 {[%emt 0:06:00]} 26. Bxe8 {[%emt 0:00:33]} Rxe8 {[%emt 0:00:33]} 27. Bxg3 {[%emt 0:02:09]} Qd4 {[%emt 0:01:06]} 28. Qc3 {[%emt 0:00:30] Weighted Error Value: White=0.18 (very precise) /Black=0.47} 1-0

[Event "GER-ch Youth-U16 2022"]
[Site "Willingen"]
[Date "2022.06.08"]
[Round "6.3"]
[White "Lutsko, Artem"]
[Black "Ohler, Julius"]
[Result "1-0"]
[ECO "B10"]
[WhiteElo "2392"]
[BlackElo "2011"]
[Annotator "TA"]
[PlyCount "67"]
[EventDate "2022.06.05"]
[EventType "swiss"]
[EventRounds "9"]
[EventCountry "GER"]
[SourceTitle "playchess.com"]
[Source "ChessBase"]
[SourceQuality "1"]
[TimeControl "40/4500+30:900+30"]

{[%evp 10,67,18,28,19,20,16,32,34,16,35,37,42,42,27,25,53,50,59,60,69,67,93,70,62,60,61,60,73,79,94,93,143,129,236,200,231,204,216,211,184,79,127,98,189,198,195,172,345,250,254,264,250,254,365,333,287,286,282,280]} 1. e4 {[%emt 0:00:00]} c6 {[%emt 0:00:00]} 2. Nf3 {[%emt 0:00:00]} d5 {[%emt 0:00:00]} 3. Nc3 {[%emt 0:00:00]} dxe4 {[%emt 0:00:00]} 4. Nxe4 {[%emt 0:00:00]} Nf6 {[%emt 0:00:00]} 5. Qe2 {[%emt 0:00:00]} Nxe4 {[%emt 0:00:00]} 6. Qxe4 {[%emt 0:00:00]} Nd7 {[%emt 0:00:00] B11: Caro-Kann: Two Knights Variation.} 7. Bc4 {[%emt 0:00:00] Threatens to win with Ng5.} Nf6 {[%emt 0:00:00] [#]} 8. Ne5 $1 {[%emt 0:00:00][%csl Ge5][%cal Rc4f7]} e6 {[%emt 0:00:00] White is slightly better.} 9. Qe2 {[%emt 0:00:00]} Be7 {[%emt 0:00:00]} 10. O-O {[%emt 0:00:00]} O-O {[%emt 0:00:00]} 11. Rd1 {[%emt 0:00:00]} Qc7 {[%emt 0:00:00]} 12. d4 {[%emt 0:00:00]} Rd8 {[%emt 0:08:25]} 13. Bf4 {[%emt 0:00:00] [#]} Nd5 $146 {[%emt 0:04:24]} ({Predecessor:} 13... Bd6 14. Bg5 Be7 15. Rd3 Nd5 16. Bxe7 Qxe7 17. Rf3 f6 18. Nd3 Nb6 19. Nf4 Rxd4 20. Bxe6+ Bxe6 21. Nxe6 {1-0 (37) Mai,A (2042)-Stojkoski,A (2104) Struga 2021}) 14. Bg3 {[%emt 0:00:00][%cal Oe5f7] [#] Hoping for Nxf7!} Bd6 $1 {[%emt 0:00:32]} 15. Bd3 {[%emt 0:00:00]} b5 {[%emt 0:15:57]} 16. a4 {[%emt 0:08:45][%cal Ba2a4,Ba4a5][%mdl 32]} b4 {[%emt 0:02:15]} 17. a5 {[%emt 0:00:03]} f6 {[%emt 0:09:43]} 18. Nc4 {[%emt 0:07:10][%cal Be5c4,Bc4a5,Ba5b3,Bb3c5][%mdl 32]} Bxg3 {[%emt 0:00:33]} 19. hxg3 {[%emt 0:00:02]} Qf7 {[%emt 0:09:23]} 20. a6 {[%emt 0:02:22]} Nc7 {[%emt 0:05:13]} (20... g6 $142) 21. Qe4 {[%emt 0:01:03][%cal Oc4e5] Strongly threatening Ne5! 0x0.001e61f522addp-1022s more active pieces.} Bxa6 {[%emt 0:00:27]} (21... g6 $16 {was called for.}) 22. Qxh7+ $18 {[%emt 0:01:53]} Kf8 {[%emt 0:00:06]} 23. Na5 {[%emt 0:07:04]} Bxd3 {[%emt 0:06:54]} 24. Rxd3 {[%emt 0:00:03]} (24. cxd3 $6 Rd6 $16) 24... Nd5 {[%emt 0:00:59]} 25. Re1 {[%emt 0:15:02]} (25. Nxc6 $18 {is more deadly.} Rdc8 26. Ra6) 25... Rac8 {[%emt 0:01:06]} (25... Re8 $142) 26. Nb3 {[%emt 0:02:14] Nc5 is the strong threat.} Rd6 {[%emt 0:02:15]} (26... g5 $16 27. Qh6+ Ke7) 27. Nc5 {[%emt 0:00:23]} Re8 {[%emt 0:00:49]} 28. Rf3 {[%emt 0:01:39]} Qg8 $2 {[%emt 0:02:38]} (28... g5 29. Qh8+ Ke7) 29. Qe4 {[%emt 0:02:47]} Qf7 {[%emt 0:01:13]} 30. g4 {[%emt 0:00:45] Black must now prevent g5.} e5 {[%emt 0:04:39]} 31. Rh3 {[%emt 0:08:46] And now Rh8+ would win.} (31. dxe5 Rxe5 32. Qxe5 fxe5 $16) 31... g6 {[%emt 0:01:26]} (31... Qg8 $142 32. Nd3 Rde6) 32. Rh8+ {[%emt 0:03:52]} ({Avoid the trap} 32. dxe5 $2 Rxe5 33. Qxe5 (33. Rh8+ $2 Kg7 $19) 33... fxe5 $19) 32... Kg7 {[%emt 0:00:06]} 33. Rxe8 {[%emt 0:00:03]} Qxe8 {[%emt 0:00:04]} 34. f4 {[%emt 0:00:16] Weighted Error Value: White=0.15 (very precise) /Black=0.28 (precise)} ({Not} 34. dxe5 Qxe5 35. Qxe5 fxe5 $16) 1-0